[Event "*** SCC Grand Prix: Titled Tuesday Blitz"]
[Site "Chess.com"]
[Date "2020.08.11"]
[Round "7"]
[White "Grineva_Marianna"]
[Black "MFBerna"]
[Result "0-1"]
[WhiteElo "2202"]
[BlackElo "2400"]
[TimeControl "180+1"]
[EndTime "11:17:28 PDT"]
[Termination "MFBerna won on time"]

1. e4 {[%clk 0:03:00.8]} 1... c5 {[%clk 0:02:58.3]} 2. Nf3 {[%clk 0:03:00.6]}
2... d6 {[%clk 0:02:56.7]} 3. d4 {[%clk 0:03:00.6]} 3... cxd4 {[%clk 0:02:57.3]}
4. Nxd4 {[%clk 0:03:01.5]} 4... Nf6 {[%clk 0:02:58]} 5. Nc3 {[%clk 0:03:01.6]}
5... Nc6 {[%clk 0:02:57]} 6. f3 {[%clk 0:02:58.2]} 6... e5 {[%clk 0:02:56.4]} 7.
Nb3 {[%clk 0:02:57.9]} 7... Be7 {[%clk 0:02:55.6]} 8. Be3 {[%clk 0:02:57.6]}
8... Be6 {[%clk 0:02:55.8]} 9. Nd5 {[%clk 0:02:57.7]} 9... O-O {[%clk
0:02:55.5]} 10. Qd2 {[%clk 0:02:56.3]} 10... Bxd5 {[%clk 0:02:54.9]} 11. exd5
{[%clk 0:02:56.3]} 11... Nb8 {[%clk 0:02:54.5]} 12. g4 {[%clk 0:02:51.4]} 12...
Nbd7 {[%clk 0:02:53.9]} 13. g5 {[%clk 0:02:49.8]} 13... Nh5 {[%clk 0:02:54.2]}
14. h4 {[%clk 0:02:50]} 14... f5 {[%clk 0:02:45.6]} 15. O-O-O {[%clk 0:02:35.6]}
15... Rc8 {[%clk 0:02:44.8]} 16. Kb1 {[%clk 0:02:30.9]} 16... Qc7 {[%clk
0:02:44]} 17. Bd3 {[%clk 0:02:25]} 17... a6 {[%clk 0:02:33.6]} 18. c3 {[%clk
0:02:13.1]} 18... b5 {[%clk 0:02:33.1]} 19. a3 {[%clk 0:01:58]} 19... Nb6 {[%clk
0:02:32.1]} 20. Na5 {[%clk 0:01:39.2]} 20... Nxd5 {[%clk 0:02:26.9]} 21. Bc4
{[%clk 0:01:33.8]} 21... bxc4 {[%clk 0:02:21]} 22. Qxd5+ {[%clk 0:01:33.8]}
22... Kh8 {[%clk 0:02:21.6]} 23. Ka1 {[%clk 0:01:20.8]} 23... Rfd8 {[%clk
0:01:40.4]} 24. Rh2 {[%clk 0:01:18.4]} 24... Bf8 {[%clk 0:01:28.9]} 25. Rhd2
{[%clk 0:01:09.5]} 25... Rd7 {[%clk 0:01:22.6]} 26. Qe6 {[%clk 0:00:54.1]} 26...
Rdd8 {[%clk 0:01:14.6]} 27. Rd5 {[%clk 0:00:48.9]} 27... g6 {[%clk 0:00:52.3]}
28. f4 {[%clk 0:00:36.8]} 28... Ng7 {[%clk 0:00:48.6]} 29. Qf6 {[%clk
0:00:21.8]} 29... Be7 {[%clk 0:00:48.6]} 30. Qf7 {[%clk 0:00:20.4]} 30... Rf8
{[%clk 0:00:48.9]} 31. Qxf8+ {[%clk 0:00:10.2]} 31... Bxf8 {[%clk 0:00:45.8]}
32. fxe5 {[%clk 0:00:10.6]} 32... dxe5 {[%clk 0:00:46.4]} 33. R1d2 {[%clk
0:00:07.7]} 33... Ne6 {[%clk 0:00:46.4]} 34. Ka2 {[%clk 0:00:06.9]} 34... Rd8
{[%clk 0:00:45.3]} 35. Rxd8 {[%clk 0:00:06.3]} 35... Nxd8 {[%clk 0:00:46.2]} 36.
Rd5 {[%clk 0:00:05.2]} 36... Nc6 {[%clk 0:00:37.7]} 37. Nxc4 {[%clk 0:00:03.8]}
37... Nb4+ {[%clk 0:00:36.4]} 0-1

[Event "*** SCC Grand Prix: Titled Tuesday Blitz"]
[Site "Chess.com"]
[Date "2020.08.11"]
[Round "7"]
[White "MarcoRiehle"]
[Black "pedromartinez91"]
[Result "0-1"]
[WhiteElo "2729"]
[BlackElo "2582"]
[TimeControl "180+1"]
[EndTime "11:17:30 PDT"]
[Termination "pedromartinez91 won by resignation"]

1. e4 {[%clk 0:02:58.7]} 1... b6 {[%clk 0:02:57.1]} 2. d4 {[%clk 0:02:56.7]}
2... Bb7 {[%clk 0:02:57]} 3. Bd3 {[%clk 0:02:55.3]} 3... e6 {[%clk 0:02:57]} 4.
Nf3 {[%clk 0:02:55.4]} 4... d5 {[%clk 0:02:43.8]} 5. e5 {[%clk 0:02:54.3]} 5...
c5 {[%clk 0:02:43.1]} 6. c3 {[%clk 0:02:52.4]} 6... Ne7 {[%clk 0:02:42.2]} 7.
O-O {[%clk 0:02:50.8]} 7... Qd7 {[%clk 0:02:41.7]} 8. Qe2 {[%clk 0:02:47.6]}
8... a5 {[%clk 0:02:36.4]} 9. Ng5 {[%clk 0:02:42.3]} 9... Ba6 {[%clk 0:02:28.2]}
10. f4 {[%clk 0:02:40.7]} 10... Bxd3 {[%clk 0:02:23.8]} 11. Qxd3 {[%clk
0:02:41.6]} 11... h6 {[%clk 0:02:23.5]} 12. Nh3 {[%clk 0:02:39.5]} 12... Nbc6
{[%clk 0:02:16.9]} 13. Be3 {[%clk 0:02:31.3]} 13... Nf5 {[%clk 0:02:14]} 14. Bf2
{[%clk 0:02:28]} 14... cxd4 {[%clk 0:02:14.2]} 15. cxd4 {[%clk 0:02:27.7]} 15...
Nfxd4 {[%clk 0:02:11.6]} 16. Nc3 {[%clk 0:02:24.1]} 16... Bc5 {[%clk 0:02:07.5]}
17. Rac1 {[%clk 0:02:21.6]} 17... O-O {[%clk 0:02:06.4]} 18. a4 {[%clk
0:02:03.8]} 18... Nf5 {[%clk 0:02:01.1]} 19. Nb5 {[%clk 0:02:00.1]} 19... Nb4
{[%clk 0:02:00.3]} 20. Qb1 {[%clk 0:01:58.4]} 20... Rfc8 {[%clk 0:01:59.5]} 21.
g4 {[%clk 0:01:57.5]} 21... Ne3 {[%clk 0:01:56.8]} 22. Rfe1 {[%clk 0:01:57.2]}
22... Nxg4 {[%clk 0:01:55.7]} 23. Bxc5 {[%clk 0:01:54]} 23... Rxc5 {[%clk
0:01:54.8]} 24. Rxc5 {[%clk 0:01:52.8]} 24... bxc5 {[%clk 0:01:54.6]} 25. Qd1
{[%clk 0:01:50.7]} 25... f5 {[%clk 0:01:49.9]} 26. exf6 {[%clk 0:01:50.2]} 26...
Nxf6 {[%clk 0:01:49.9]} 27. f5 {[%clk 0:01:47.3]} 27... exf5 {[%clk 0:01:32.6]}
28. Nf4 {[%clk 0:01:46.7]} 28... Re8 {[%clk 0:01:32.3]} 29. Rf1 {[%clk
0:01:38.1]} 29... Re4 {[%clk 0:01:32]} 30. Nc3 {[%clk 0:01:33.9]} 30... Rd4
{[%clk 0:01:29.8]} 31. Qf3 {[%clk 0:01:33.6]} 31... Qe8 {[%clk 0:01:18]} 32.
Nfe2 {[%clk 0:01:18.4]} 32... Rg4+ {[%clk 0:01:11.3]} 33. Kh1 {[%clk 0:01:18.5]}
33... d4 {[%clk 0:01:11.6]} 34. Nb5 {[%clk 0:01:12.8]} 34... Qe4 {[%clk
0:01:11.1]} 35. Nd6 {[%clk 0:01:13]} 35... Qxf3+ {[%clk 0:01:07.8]} 36. Rxf3
{[%clk 0:01:13.9]} 36... g6 {[%clk 0:01:01]} 37. h3 {[%clk 0:01:10.6]} 37... Rh4
{[%clk 0:00:58.6]} 38. Nf4 {[%clk 0:01:07.4]} 38... Ne4 {[%clk 0:00:55.5]} 39.
Nc4 {[%clk 0:00:59.1]} 39... Kf7 {[%clk 0:00:49.9]} 40. Ne5+ {[%clk 0:00:57.4]}
40... Kf6 {[%clk 0:00:46.1]} 41. Nfxg6 {[%clk 0:00:44.5]} 41... Rh5 {[%clk
0:00:40.8]} 42. Nf4 {[%clk 0:00:43.8]} 42... Rg5 {[%clk 0:00:38.6]} 43. Nd7+
{[%clk 0:00:43.1]} 43... Ke7 {[%clk 0:00:36.9]} 44. Ne5 {[%clk 0:00:43.4]} 44...
Rg3 {[%clk 0:00:36.7]} 45. Rf1 {[%clk 0:00:40.7]} 45... Rb3 {[%clk 0:00:25.9]}
46. Nc4 {[%clk 0:00:38]} 46... Ng3+ {[%clk 0:00:24.9]} 47. Kg2 {[%clk
0:00:36.3]} 47... Nxf1 {[%clk 0:00:25.8]} 48. Nd5+ {[%clk 0:00:32.8]} 48... Nxd5
{[%clk 0:00:25.3]} 0-1

[Event "*** SCC Grand Prix: Titled Tuesday Blitz"]
[Site "Chess.com"]
[Date "2020.08.11"]
[Round "7"]
[White "Duong57"]
[Black "DonPreuss"]
[Result "0-1"]
[WhiteElo "2324"]
[BlackElo "2212"]
[TimeControl "180+1"]
[EndTime "11:17:30 PDT"]
[Termination "DonPreuss won on time"]

1. d4 {[%clk 0:03:00.9]} 1... Nc6 {[%clk 0:02:55.1]} 2. Nf3 {[%clk 0:02:57.1]}
2... d6 {[%clk 0:02:54]} 3. c4 {[%clk 0:02:53.7]} 3... e5 {[%clk 0:02:53.2]} 4.
d5 {[%clk 0:02:48.8]} 4... Nb8 {[%clk 0:02:50.8]} 5. Nc3 {[%clk 0:02:49]} 5...
Be7 {[%clk 0:02:48.6]} 6. e4 {[%clk 0:02:48.6]} 6... f5 {[%clk 0:02:47.9]} 7.
Bd3 {[%clk 0:02:42.7]} 7... f4 {[%clk 0:02:44.9]} 8. c5 {[%clk 0:02:35]} 8...
Nf6 {[%clk 0:02:44.3]} 9. O-O {[%clk 0:02:07.9]} 9... O-O {[%clk 0:02:43.7]} 10.
cxd6 {[%clk 0:02:04.8]} 10... cxd6 {[%clk 0:02:42.7]} 11. Be2 {[%clk 0:01:47.8]}
11... Bg4 {[%clk 0:02:33.7]} 12. Ng5 {[%clk 0:01:46.2]} 12... Bxe2 {[%clk
0:02:14.6]} 13. Qxe2 {[%clk 0:01:43.6]} 13... Qd7 {[%clk 0:02:14.6]} 14. Ne6
{[%clk 0:01:42.9]} 14... Rc8 {[%clk 0:02:14.2]} 15. Bd2 {[%clk 0:01:36.9]} 15...
Na6 {[%clk 0:02:14.1]} 16. Rfc1 {[%clk 0:01:31.4]} 16... Nc5 {[%clk 0:02:13.3]}
17. Nxc5 {[%clk 0:01:09.1]} 17... Rxc5 {[%clk 0:02:14.2]} 18. b4 {[%clk
0:01:07.4]} 18... Rcc8 {[%clk 0:02:06.8]} 19. a4 {[%clk 0:01:06.8]} 19... g5
{[%clk 0:02:03.7]} 20. a5 {[%clk 0:01:05.6]} 20... g4 {[%clk 0:02:02.1]} 21. a6
{[%clk 0:00:47.1]} 21... b6 {[%clk 0:01:59.3]} 22. b5 {[%clk 0:00:41.4]} 22...
Kh8 {[%clk 0:01:49.7]} 23. f3 {[%clk 0:00:41]} 23... Rg8 {[%clk 0:01:47.9]} 24.
Ra4 {[%clk 0:00:23.7]} 24... Rg6 {[%clk 0:01:33.3]} 25. Rc4 {[%clk 0:00:21.2]}
25... Rag8 {[%clk 0:01:33]} 26. fxg4 {[%clk 0:00:20.1]} 26... Rxg4 {[%clk
0:01:30.9]} 27. Rc2 {[%clk 0:00:19.7]} 27... Rxg2+ {[%clk 0:01:22.1]} 28. Qxg2
{[%clk 0:00:19.8]} 28... Rxg2+ {[%clk 0:01:22.4]} 29. Kxg2 {[%clk 0:00:20.7]}
29... Qg4+ {[%clk 0:01:21.7]} 30. Kf2 {[%clk 0:00:20.6]} 30... Qh5 {[%clk
0:01:06.7]} 31. Kg1 {[%clk 0:00:18.1]} 31... Qf3 {[%clk 0:00:51.9]} 32. Be1
{[%clk 0:00:17.2]} 32... Ng4 {[%clk 0:00:47.3]} 33. Rc8+ {[%clk 0:00:16.4]}
33... Kg7 {[%clk 0:00:45.9]} 34. Rg2 {[%clk 0:00:16.1]} 34... Kf6 {[%clk
0:00:40.5]} 35. Bd2 {[%clk 0:00:12.5]} 35... h5 {[%clk 0:00:33.5]} 36. Rh8
{[%clk 0:00:09.6]} 36... Qh3 {[%clk 0:00:31.9]} 0-1

[Event "*** SCC Grand Prix: Titled Tuesday Blitz"]
[Site "Chess.com"]
[Date "2020.08.11"]
[Round "7"]
[White "Eternauta2400"]
[Black "Ave_Mariia"]
[Result "0-1"]
[WhiteElo "2496"]
[BlackElo "2401"]
[TimeControl "180+1"]
[EndTime "11:17:34 PDT"]
[Termination "Ave_Mariia won on time"]

1. e4 {[%clk 0:02:51.7]} 1... c5 {[%clk 0:02:59.8]} 2. Nf3 {[%clk 0:02:51.5]}
2... d6 {[%clk 0:03:00.2]} 3. Bb5+ {[%clk 0:02:51.1]} 3... Nd7 {[%clk
0:02:59.7]} 4. O-O {[%clk 0:02:49.9]} 4... Nf6 {[%clk 0:02:59.9]} 5. Re1 {[%clk
0:02:47.4]} 5... g6 {[%clk 0:02:51.5]} 6. c3 {[%clk 0:02:46.5]} 6... a6 {[%clk
0:02:50.7]} 7. Bd3 {[%clk 0:02:41.7]} 7... Bg7 {[%clk 0:02:49]} 8. Bc2 {[%clk
0:02:41.1]} 8... c4 {[%clk 0:02:48.4]} 9. b3 {[%clk 0:02:38.3]} 9... cxb3 {[%clk
0:02:44.1]} 10. axb3 {[%clk 0:02:37.7]} 10... O-O {[%clk 0:02:43.8]} 11. d4
{[%clk 0:02:36.7]} 11... b5 {[%clk 0:02:41.5]} 12. Nbd2 {[%clk 0:02:22.7]} 12...
Bb7 {[%clk 0:02:41.3]} 13. Nf1 {[%clk 0:02:21.2]} 13... Qc7 {[%clk 0:02:40.6]}
14. Bb2 {[%clk 0:02:11.1]} 14... e5 {[%clk 0:02:32.2]} 15. d5 {[%clk 0:01:52.7]}
15... Nc5 {[%clk 0:02:29.5]} 16. b4 {[%clk 0:01:40.3]} 16... Ncd7 {[%clk
0:02:23.5]} 17. Ne3 {[%clk 0:01:40]} 17... Nb6 {[%clk 0:02:22.3]} 18. Bb3 {[%clk
0:01:35.3]} 18... Nxe4 {[%clk 0:02:15.4]} 19. c4 {[%clk 0:01:25.5]} 19... bxc4
{[%clk 0:02:07.5]} 20. Rc1 {[%clk 0:01:11.6]} 20... c3 {[%clk 0:01:53.2]} 21.
Qd3 {[%clk 0:01:05.9]} 21... f5 {[%clk 0:01:53.2]} 22. Bxc3 {[%clk 0:00:58.6]}
22... Nxc3 {[%clk 0:01:51.8]} 23. Rxc3 {[%clk 0:00:59.5]} 23... Qe7 {[%clk
0:01:48.2]} 24. Qc2 {[%clk 0:00:45.8]} 24... e4 {[%clk 0:01:45.5]} 25. Rc7
{[%clk 0:00:44.6]} 25... Qd8 {[%clk 0:01:31.3]} 26. Rxb7 {[%clk 0:00:23.9]}
26... exf3 {[%clk 0:01:30.3]} 27. Nc4 {[%clk 0:00:19.2]} 27... Nxc4 {[%clk
0:01:21.2]} 28. Qxc4 {[%clk 0:00:18.9]} 28... Rc8 {[%clk 0:01:01.5]} 29. Qxa6
{[%clk 0:00:18.7]} 29... Qg5 {[%clk 0:01:00.4]} 30. Qf1 {[%clk 0:00:16.8]} 30...
Rc3 {[%clk 0:00:47.4]} 31. Bd1 {[%clk 0:00:16.2]} 31... Be5 {[%clk 0:00:42.1]}
32. g3 {[%clk 0:00:10]} 32... Rfc8 {[%clk 0:00:39]} 33. h4 {[%clk 0:00:08]}
33... Qg4 {[%clk 0:00:37.5]} 34. Kh2 {[%clk 0:00:04.9]} 34... Bxg3+ {[%clk
0:00:23.5]} 35. fxg3 {[%clk 0:00:04.4]} 35... Rc2+ {[%clk 0:00:24]} 0-1

[Event "*** SCC Grand Prix: Titled Tuesday Blitz"]
[Site "Chess.com"]
[Date "2020.08.11"]
[Round "7"]
[White "profofchess"]
[Black "TimKett"]
[Result "1/2-1/2"]
[WhiteElo "2398"]
[BlackElo "2200"]
[TimeControl "180+1"]
[EndTime "11:17:35 PDT"]
[Termination "Game drawn by repetition"]

1. e4 {[%clk 0:03:00.9]} 1... e5 {[%clk 0:03:00]} 2. Nf3 {[%clk 0:03:00.6]} 2...
Nc6 {[%clk 0:03:00.2]} 3. Nc3 {[%clk 0:03:01.5]} 3... Nf6 {[%clk 0:02:59.7]} 4.
Bb5 {[%clk 0:03:02.2]} 4... Nd4 {[%clk 0:02:58.8]} 5. Bc4 {[%clk 0:03:01.2]}
5... Nxf3+ {[%clk 0:02:42.4]} 6. gxf3 {[%clk 0:02:59.9]} 6... c6 {[%clk
0:02:34.6]} 7. d4 {[%clk 0:02:56.4]} 7... exd4 {[%clk 0:02:10.2]} 8. Qxd4 {[%clk
0:02:57.3]} 8... d5 {[%clk 0:01:42.3]} 9. exd5 {[%clk 0:02:50.7]} 9... cxd5
{[%clk 0:01:42]} 10. Bb5+ {[%clk 0:02:30.6]} 10... Bd7 {[%clk 0:01:40.8]} 11.
Bxd7+ {[%clk 0:02:29.8]} 11... Qxd7 {[%clk 0:01:40.1]} 12. Bg5 {[%clk
0:02:25.2]} 12... Be7 {[%clk 0:01:37.8]} 13. O-O-O {[%clk 0:02:21.6]} 13... O-O
{[%clk 0:01:36.1]} 14. Rhg1 {[%clk 0:02:20.9]} 14... Kh8 {[%clk 0:01:29.5]} 15.
Nxd5 {[%clk 0:01:59.8]} 15... Nxd5 {[%clk 0:01:25.9]} 16. Bxe7 {[%clk
0:01:48.8]} 16... Rg8 {[%clk 0:01:18.7]} 17. Ba3 {[%clk 0:01:21.9]} 17... Rad8
{[%clk 0:01:15.4]} 18. b3 {[%clk 0:01:02.4]} 18... Qf5 {[%clk 0:01:01.3]} 19.
Bb2 {[%clk 0:00:56]} 19... f6 {[%clk 0:00:57.3]} 20. Qe4 {[%clk 0:00:54.1]}
20... Qxe4 {[%clk 0:00:50.2]} 21. fxe4 {[%clk 0:00:55]} 21... Nf4 {[%clk
0:00:50.2]} 22. Rd2 {[%clk 0:00:34.6]} 22... h5 {[%clk 0:00:46.3]} 23. Rgd1
{[%clk 0:00:34.1]} 23... Rxd2 {[%clk 0:00:40.5]} 24. Rxd2 {[%clk 0:00:35]} 24...
Kh7 {[%clk 0:00:37]} 25. Rd7 {[%clk 0:00:34]} 25... Kg6 {[%clk 0:00:37.5]} 26.
Rxb7 {[%clk 0:00:30.4]} 26... Rd8 {[%clk 0:00:35.3]} 27. a4 {[%clk 0:00:16.1]}
27... Ne2+ {[%clk 0:00:32.2]} 28. Kb1 {[%clk 0:00:16.3]} 28... Rd1+ {[%clk
0:00:31.2]} 29. Ka2 {[%clk 0:00:16.4]} 29... Rd2 {[%clk 0:00:31.8]} 30. Rc7
{[%clk 0:00:15.7]} 30... Nf4 {[%clk 0:00:27.2]} 31. b4 {[%clk 0:00:11.4]} 31...
Rxf2 {[%clk 0:00:27]} 32. b5 {[%clk 0:00:10.7]} 32... Rxh2 {[%clk 0:00:26.8]}
33. Rxa7 {[%clk 0:00:10.7]} 33... Ne6 {[%clk 0:00:19.5]} 34. b6 {[%clk
0:00:09.6]} 34... Nc5 {[%clk 0:00:19.4]} 35. Rc7 {[%clk 0:00:09.2]} 35... Na6
{[%clk 0:00:18.4]} 36. Ra7 {[%clk 0:00:07.9]} 36... Nc5 {[%clk 0:00:17.7]} 37.
Ra5 {[%clk 0:00:07.6]} 37... Nb7 {[%clk 0:00:17]} 38. Ra7 {[%clk 0:00:07.3]}
38... Nc5 {[%clk 0:00:17.2]} 1/2-1/2

[Event "*** SCC Grand Prix: Titled Tuesday Blitz"]
[Site "Chess.com"]
[Date "2020.08.11"]
[Round "7"]
[White "ShahMatKanal"]
[Black "ftorodent"]
[Result "0-1"]
[WhiteElo "2470"]
[BlackElo "2660"]
[TimeControl "180+1"]
[EndTime "11:17:37 PDT"]
[Termination "ftorodent won by resignation"]

1. d4 {[%clk 0:03:00.9]} 1... f5 {[%clk 0:02:59.4]} 2. Nc3 {[%clk 0:03:00.3]}
2... Nf6 {[%clk 0:02:58.5]} 3. Bg5 {[%clk 0:02:57.8]} 3... d5 {[%clk 0:02:58.3]}
4. Bxf6 {[%clk 0:02:57.3]} 4... exf6 {[%clk 0:02:58.1]} 5. e3 {[%clk 0:02:57.6]}
5... Be6 {[%clk 0:02:57.7]} 6. Qf3 {[%clk 0:02:52.7]} 6... Qd7 {[%clk
0:02:57.6]} 7. Bb5 {[%clk 0:02:47.3]} 7... Nc6 {[%clk 0:02:50.2]} 8. a3 {[%clk
0:02:40.8]} 8... a6 {[%clk 0:02:49.6]} 9. Bd3 {[%clk 0:02:39.3]} 9... Ne7 {[%clk
0:02:43.5]} 10. Nge2 {[%clk 0:02:35.7]} 10... g6 {[%clk 0:02:41.2]} 11. Nf4
{[%clk 0:02:31.2]} 11... Bf7 {[%clk 0:02:40.9]} 12. h3 {[%clk 0:02:29]} 12... h5
{[%clk 0:02:29.7]} 13. O-O-O {[%clk 0:02:21.7]} 13... h4 {[%clk 0:02:16.6]} 14.
g4 {[%clk 0:02:00.1]} 14... hxg3 {[%clk 0:02:00.2]} 15. fxg3 {[%clk 0:01:58.4]}
15... g5 {[%clk 0:01:52.8]} 16. Nfe2 {[%clk 0:01:46.2]} 16... O-O-O {[%clk
0:01:46.5]} 17. g4 {[%clk 0:01:41.5]} 17... Be6 {[%clk 0:01:42.4]} 18. gxf5
{[%clk 0:01:27]} 18... Bxf5 {[%clk 0:01:42.1]} 19. Rdf1 {[%clk 0:01:16.6]} 19...
Bxh3 {[%clk 0:01:21.9]} 20. Qxf6 {[%clk 0:01:10.4]} 20... Rg8 {[%clk 0:01:14.2]}
21. Rf2 {[%clk 0:00:48.5]} 21... Bg7 {[%clk 0:01:07.9]} 22. Qxg5 {[%clk
0:00:45.2]} 22... Bxd4 {[%clk 0:01:02.3]} 23. Qh6 {[%clk 0:00:44.7]} 23... Rh8
{[%clk 0:01:00.1]} 24. Qf4 {[%clk 0:00:39.9]} 24... Bc5 {[%clk 0:00:49.4]} 25.
Nd4 {[%clk 0:00:38.4]} 25... Kb8 {[%clk 0:00:33.8]} 26. Rfh2 {[%clk 0:00:37.8]}
26... Bd6 {[%clk 0:00:33.2]} 27. Qf6 {[%clk 0:00:23.9]} 27... Bxh2 {[%clk
0:00:32.4]} 28. Rxh2 {[%clk 0:00:24.8]} 28... Qd6 {[%clk 0:00:31.2]} 29. Qxd6
{[%clk 0:00:15]} 29... Rxd6 {[%clk 0:00:31.2]} 30. Nce2 {[%clk 0:00:13.9]} 30...
Rdh6 {[%clk 0:00:30.4]} 31. Rf2 {[%clk 0:00:11.6]} 31... c5 {[%clk 0:00:26.3]}
32. Nf5 {[%clk 0:00:09.1]} 32... Rf6 {[%clk 0:00:24.1]} 33. Rf4 {[%clk 0:00:04]}
33... Bxf5 {[%clk 0:00:22.6]} 34. Ng3 {[%clk 0:00:03.7]} 34... Rhf8 {[%clk
0:00:22.3]} 35. Nh5 {[%clk 0:00:03.2]} 35... R6f7 {[%clk 0:00:22.6]} 0-1

[Event "*** SCC Grand Prix: Titled Tuesday Blitz"]
[Site "Chess.com"]
[Date "2020.08.11"]
[Round "7"]
[White "Srisshhhtea"]
[Black "MPGM"]
[Result "1-0"]
[WhiteElo "2349"]
[BlackElo "2446"]
[TimeControl "180+1"]
[EndTime "11:17:38 PDT"]
[Termination "Srisshhhtea won on time"]

1. d4 {[%clk 0:03:00.9]} 1... d5 {[%clk 0:02:59.8]} 2. c4 {[%clk 0:03:00.3]}
2... e6 {[%clk 0:02:59.9]} 3. Nf3 {[%clk 0:02:55.4]} 3... Nf6 {[%clk 0:02:59.9]}
4. g3 {[%clk 0:02:54.5]} 4... Bb4+ {[%clk 0:02:58.2]} 5. Bd2 {[%clk 0:02:51.8]}
5... a5 {[%clk 0:02:58.1]} 6. Bg2 {[%clk 0:02:50.1]} 6... c5 {[%clk 0:02:50.4]}
7. cxd5 {[%clk 0:02:43.6]} 7... exd5 {[%clk 0:02:46.7]} 8. dxc5 {[%clk
0:02:40.3]} 8... O-O {[%clk 0:02:44.8]} 9. O-O {[%clk 0:02:37.6]} 9... Bxc5
{[%clk 0:02:39.9]} 10. Qc2 {[%clk 0:02:31.7]} 10... Bb6 {[%clk 0:02:23.3]} 11.
Nc3 {[%clk 0:02:25]} 11... d4 {[%clk 0:02:21.3]} 12. Na4 {[%clk 0:02:21.8]}
12... Ba7 {[%clk 0:02:21.7]} 13. Bg5 {[%clk 0:02:17.5]} 13... Nc6 {[%clk
0:02:21.1]} 14. Rad1 {[%clk 0:02:11.3]} 14... h6 {[%clk 0:02:17.1]} 15. Bxf6
{[%clk 0:02:07.9]} 15... Qxf6 {[%clk 0:02:18]} 16. a3 {[%clk 0:02:00]} 16... Re8
{[%clk 0:02:17.6]} 17. Nc5 {[%clk 0:01:52.8]} 17... Re7 {[%clk 0:02:07.7]} 18.
Nd3 {[%clk 0:01:35]} 18... Bf5 {[%clk 0:01:58.8]} 19. Rfe1 {[%clk 0:01:31.4]}
19... Rae8 {[%clk 0:01:56.7]} 20. Qd2 {[%clk 0:01:27.6]} 20... Bg4 {[%clk
0:01:24.3]} 21. Nf4 {[%clk 0:01:25.2]} 21... Rd8 {[%clk 0:01:12.8]} 22. h3
{[%clk 0:01:13.7]} 22... Bf5 {[%clk 0:01:09.2]} 23. Nh2 {[%clk 0:00:58.4]} 23...
Be4 {[%clk 0:00:39.4]} 24. Ng4 {[%clk 0:00:53.3]} 24... Qf5 {[%clk 0:00:32.5]}
25. b4 {[%clk 0:00:39.9]} 25... axb4 {[%clk 0:00:31.3]} 26. axb4 {[%clk
0:00:40.8]} 26... Bxg2 {[%clk 0:00:28.2]} 27. Nxg2 {[%clk 0:00:41.7]} 27... h5
{[%clk 0:00:25.4]} 28. Nh4 {[%clk 0:00:39.9]} 28... Qe6 {[%clk 0:00:25]} 29. Nh2
{[%clk 0:00:34.7]} 29... Ne5 {[%clk 0:00:18.3]} 30. Qg5 {[%clk 0:00:27.4]} 30...
g6 {[%clk 0:00:12.4]} 31. Nf5 {[%clk 0:00:22.6]} 31... Red7 {[%clk 0:00:07]} 32.
g4 {[%clk 0:00:19.8]} 32... hxg4 {[%clk 0:00:02.5]} 33. Nxg4 {[%clk 0:00:19.8]}
33... Nxg4 {[%clk 0:00:02.2]} 34. hxg4 {[%clk 0:00:20]} 1-0

[Event "*** SCC Grand Prix: Titled Tuesday Blitz"]
[Site "Chess.com"]
[Date "2020.08.11"]
[Round "7"]
[White "temus_galaktionov"]
[Black "dpopadic"]
[Result "1-0"]
[WhiteElo "2669"]
[BlackElo "2424"]
[TimeControl "180+1"]
[EndTime "11:17:42 PDT"]
[Termination "temus_galaktionov won on time"]

1. d4 {[%clk 0:03:00.9]} 1... Nf6 {[%clk 0:02:59.2]} 2. Nf3 {[%clk 0:03:01.4]}
2... g6 {[%clk 0:02:59.3]} 3. c4 {[%clk 0:03:01.9]} 3... Bg7 {[%clk 0:02:59.3]}
4. Nc3 {[%clk 0:03:02.8]} 4... d6 {[%clk 0:02:59.5]} 5. e4 {[%clk 0:03:03.2]}
5... O-O {[%clk 0:02:59.3]} 6. Be2 {[%clk 0:03:04.1]} 6... e5 {[%clk 0:02:59.1]}
7. O-O {[%clk 0:03:02.8]} 7... Na6 {[%clk 0:02:58.7]} 8. Be3 {[%clk 0:03:01.2]}
8... Ng4 {[%clk 0:02:57.4]} 9. Bg5 {[%clk 0:03:00.4]} 9... Qe8 {[%clk
0:02:57.4]} 10. Re1 {[%clk 0:02:51.1]} 10... c6 {[%clk 0:02:54.5]} 11. h3 {[%clk
0:02:49.6]} 11... f6 {[%clk 0:02:54.1]} 12. Bh4 {[%clk 0:02:43.3]} 12... Nh6
{[%clk 0:02:51.9]} 13. a3 {[%clk 0:02:40.1]} 13... Qe7 {[%clk 0:02:44.2]} 14.
Qd2 {[%clk 0:02:38.7]} 14... Nf7 {[%clk 0:02:39.5]} 15. b4 {[%clk 0:02:37.8]}
15... Nc7 {[%clk 0:02:38.8]} 16. dxe5 {[%clk 0:02:34.7]} 16... dxe5 {[%clk
0:02:36.1]} 17. c5 {[%clk 0:02:35.6]} 17... Be6 {[%clk 0:02:32.9]} 18. Red1
{[%clk 0:02:32.4]} 18... Rfd8 {[%clk 0:02:32.2]} 19. Qc2 {[%clk 0:02:31.1]}
19... Rxd1+ {[%clk 0:02:02.6]} 20. Rxd1 {[%clk 0:02:32]} 20... Rd8 {[%clk
0:02:01.7]} 21. Rxd8+ {[%clk 0:02:23.7]} 21... Qxd8 {[%clk 0:02:01.6]} 22. Qd2
{[%clk 0:02:23.9]} 22... Qe7 {[%clk 0:01:55.2]} 23. Qd1 {[%clk 0:02:17.2]} 23...
h5 {[%clk 0:01:42.4]} 24. Nd2 {[%clk 0:02:08.4]} 24... Qd7 {[%clk 0:01:15.5]}
25. Nc4 {[%clk 0:02:03.4]} 25... Qxd1+ {[%clk 0:01:14.1]} 26. Nxd1 {[%clk
0:02:02.3]} 26... Bxc4 {[%clk 0:01:11.3]} 27. Bxc4 {[%clk 0:02:03.2]} 27... Kf8
{[%clk 0:01:10.8]} 28. f3 {[%clk 0:01:59.9]} 28... Ke7 {[%clk 0:01:09.2]} 29.
Kf1 {[%clk 0:01:55.7]} 29... Ne6 {[%clk 0:01:05.3]} 30. Nb2 {[%clk 0:01:51.3]}
30... Bh6 {[%clk 0:01:03.2]} 31. Nd3 {[%clk 0:01:49.7]} 31... Be3 {[%clk
0:00:55.3]} 32. Ke2 {[%clk 0:01:48.9]} 32... Bd4 {[%clk 0:00:55]} 33. Kd2 {[%clk
0:01:48.7]} 33... a6 {[%clk 0:00:47]} 34. Kc2 {[%clk 0:01:46.1]} 34... Be3
{[%clk 0:00:41.6]} 35. Ba2 {[%clk 0:01:42.3]} 35... Nd4+ {[%clk 0:00:30.2]} 36.
Kc3 {[%clk 0:01:41.9]} 36... Ne2+ {[%clk 0:00:25.3]} 37. Kb2 {[%clk 0:01:39.6]}
37... Nd4 {[%clk 0:00:20.7]} 38. Kc3 {[%clk 0:01:31.9]} 38... Ne2+ {[%clk
0:00:19.6]} 39. Kb3 {[%clk 0:01:32.4]} 39... Nd4+ {[%clk 0:00:19.4]} 40. Ka4
{[%clk 0:01:28.7]} 40... Ne6 {[%clk 0:00:10.1]} 41. Nb2 {[%clk 0:01:27.3]} 41...
Ned8 {[%clk 0:00:07.9]} 42. Nc4 {[%clk 0:01:27.1]} 42... Bd4 {[%clk 0:00:07.4]}
43. Nb6 {[%clk 0:01:25.2]} 43... Ng5 {[%clk 0:00:05.4]} 44. Bxg5 {[%clk
0:01:23.4]} 44... fxg5 {[%clk 0:00:05.1]} 45. g4 {[%clk 0:01:17.6]} 45... h4
{[%clk 0:00:03.4]} 46. Bg8 {[%clk 0:01:16.7]} 46... Be3 {[%clk 0:00:03]} 47. Kb3
{[%clk 0:01:14.3]} 47... Bd4 {[%clk 0:00:02.9]} 48. Bc4 {[%clk 0:01:07.8]} 48...
Be3 {[%clk 0:00:02.7]} 49. Ka4 {[%clk 0:01:07.8]} 49... Bd4 {[%clk 0:00:03.4]}
50. Ka5 {[%clk 0:01:07.5]} 50... Bb2 {[%clk 0:00:03.4]} 51. Ka4 {[%clk
0:01:06.1]} 51... Bd4 {[%clk 0:00:03.1]} 52. Nc8+ {[%clk 0:01:06.4]} 52... Kf6
{[%clk 0:00:01.8]} 53. Ka5 {[%clk 0:01:02.2]} 53... Bb2 {[%clk 0:00:01.3]} 54.
a4 {[%clk 0:01:01.7]} 54... Bc3 {[%clk 0:00:01.1]} 55. Nd6 {[%clk 0:01:01.5]}
1-0